bitfinex/quotes_ETHUSD_20240717
["timestamp","ask_amount","ask_price","bid_price","bid_amount"]
[1721253671867,0.61186286,3418.1,3417.8,2.92585]
[1721253672077,0.61186286,3418.1,3417.6,2.3654]
[1721253672078,0.9204409,3418.3,3417.9,2.92576]
[1721253672079,0.61186286,3418.3,3417.9,2.92576]
[1721253672279,0.61186286,3418.4,3417.9,2.92576]
[1721253672484,0.61186286,3418.5,3418.1,2.92559]
[1721253673941,0.61186286,3418.5,3418.3,2.92542]
[1721253674147,0.61186286,3418.7,3418.3,2.92542]
[1721253674369,0.61186286,3418.6,3418.5,2.92522]
[1721253674567,0.9204409,3418.8,3418.5,2.92522]
[1721253674568,0.61186286,3418.8,3418.5,2.92522]
[1721253675027,0.61186286,3418.8,3418.5,5.39902]
[1721253675734,0.61186286,3418.8,3418.5,2.92522]
[1721253675969,0.61186286,3418.7,3418.3,2.92542]
[1721253676169,0.61186286,3418.6,3418.3,2.92542]
[1721253676672,0.61186286,3418.5,3418.3,2.92542]
[1721253677236,0.61186286,3418.6,3418.3,2.92542]
[1721253677854,0.61186286,3418.6,3418.4,2.92534]
[1721253678449,0.61186286,3418.6,3418.3,2.92538]
[1721253678879,0.61186286,3418.6,3418.1,2.92556]
[1721253679180,0.61186286,3418.5,3418.1,5.85108]
[1721253679336,0.61186286,3418.6,3418.2,2.9255]
[1721253680484,0.61186286,3418.5,3418.1,2.92552]
[1721253681341,0.61186286,3418.6,3417.9,5.28466]
[1721253681550,0.9204409,3418.7,3417.9,5.28466]
[1721253681551,0.61186286,3418.5,3417.9,5.28466]
[1721253682167,0.61186286,3418.4,3417.9,5.28466]
[1721253683353,3.8456209,3418.6,3417.9,5.28466]
[1721253683354,0.61186286,3418.5,3417.9,5.28466]
[1721253683765,0.61186286,3418.4,3417.9,5.28466]
[1721253684280,0.61186286,3418.5,3417.9,2.3589]
[1721253684449,0.61186286,3418.5,3417.1,5.44344]
[1721253684450,0.61186286,3418.3,3417.4,2.92614]
[1721253684653,0.61186286,3418.1,3417.4,2.92614]
[1721253684955,0.61186286,3418.1,3417.1,2.92641]
[1721253684956,0.61186286,3417.7,3417.1,2.92641]
[1721253685171,0.61186286,3417.6,3417.1,2.92641]
[1721253685484,0.61186286,3417.6,3417.0,0.6]
[1721253685485,0.61186286,3417.6,3417.2,2.92636]
[1721253685685,0.61186286,3417.6,3417.0,3.52649]
[1721253685871,0.61186286,3417.5,3417.0,3.52649]
[1721253686070,0.61186286,3417.6,3417.0,3.52649]
[1721253686451,0.61186286,3417.5,3417.0,3.52649]
[1721253686772,0.61186286,3417.5,3417.0,0.6]
[1721253688153,0.61186286,3417.4,3417.0,0.6]
[1721253688944,2.92645,3417.1,3417.0,0.6]
[1721253689144,3.8468909,3417.1,3417.0,0.6]
[1721253689396,5.45664038,3417.1,3417.0,0.6]
[1721253689691,6.84900953,3417.1,3417.0,0.6]
[1721253690394,8.37931686,3417.1,3417.0,0.6]
[1721253690547,8.37923892,3417.1,3417.0,0.6]
[1721253690986,8.37923599,3417.1,3417.0,0.6]
[1721253691161,7.67171266,3417.1,3417.0,0.6]
[1721253691383,6.84902449,3417.1,3417.0,0.6]
[1721253691550,12.77550106,3417.1,3417.0,0.6]
[1721253692058,15.20203968,3417.1,3417.0,0.6]
[1721253692601,13.36838181,3417.1,3417.0,0.42645662]
[1721253692793,13.91838181,3417.1,3417.0,0.42645662]
[1721253693095,13.91618019,3417.1,3417.0,0.42645662]
[1721253693246,13.91875488,3417.1,3417.0,0.42645662]
[1721253693447,13.21120578,3417.1,3417.0,0.42645662]
[1721253693650,13.91633465,3417.1,3417.0,0.42645662]
[1721253693856,5.85496,3415.9,3415.8,2.92749]
[1721253694058,9.06852097,3415.9,3415.8,2.92749]
[1721253694252,13.59774761,3415.9,3415.8,2.92749]
[1721253694494,13.59909205,3415.9,3415.8,2.92749]
[1721253694687,9.14537627,3415.9,3415.8,2.92749]
[1721253694896,0.0043353,3415.9,3415.8,2.92749]
[1721253695064,0.61123786,3416.0,3415.8,2.92749]
[1721253695254,3.53830786,3416.4,3415.8,2.92749]
[1721253695468,3.84378045,3416.6,3415.8,2.92749]
[1721253695469,3.53820786,3416.5,3415.8,2.92749]
[1721253695709,2.92707,3416.4,3415.8,2.92749]
[1721253696085,0.00182197,3416.3,3415.8,2.92749]
[1721253696461,0.0026277,3416.3,3415.8,2.92749]
[1721253696702,0.0040211,3416.3,3415.8,2.92749]
[1721253697007,2.92707,3416.4,3415.8,2.92749]
[1721253700097,2.92714,3416.3,3415.8,2.92749]
[1721253700516,0.00630122,3416.2,3415.8,2.92749]
[1721253700715,2.92724,3416.2,3415.8,2.92749]
[1721253701242,2.92748,3415.9,3415.8,2.92749]
[1721253701442,5.85496,3415.9,3415.8,2.92749]
[1721253701586,8.85496,3415.9,3415.8,2.92749]
[1721253701782,9.77938975,3415.9,3415.8,2.92749]
[1721253702001,9.47580978,3415.9,3415.8,2.92749]
[1721253702221,8.85496,3415.9,3415.8,2.92749]
[1721253702551,0.00975803,3415.9,3415.8,2.92749]
[1721253702690,0.00372677,3415.9,3415.8,2.92749]
[1721253702893,2.92714,3416.3,3415.8,2.92749]
[1721253703090,0.01019978,3415.9,3415.8,2.92749]
[1721253703289,3.0,3416.2,3415.8,2.92749]
[1721253703521,0.00448238,3415.9,3415.8,2.92749]
[1721253703689,5.92724,3416.2,3415.8,2.92749]
[1721253703889,0.0019863,3415.9,3415.8,2.92749]
[1721253704087,2.92724,3416.2,3415.8,2.92749]
[1721253704404,2.92714,3416.3,3415.8,2.92749]
[1721253705441,3.0,3416.6,3415.8,2.92749]
[1721253705596,2.92702,3416.5,3415.9,2.4832]
[1721253705791,5.85407,3416.5,3415.9,2.4832]
[1721253705995,2.92716,3416.3,3415.9,2.4832]
[1721253708033,2.92716,3416.3,3415.8,2.92749]
[1721253708504,2.92723,3416.2,3415.8,2.92749]
[1721253708711,2.92746,3416.0,3415.8,2.92749]
[1721253708931,5.85492,3416.0,3415.8,2.92749]
[1721253709111,2.92748,3415.9,3415.8,2.92749]
[1721253714847,5.85496,3415.9,3415.8,2.92749]
[1721253715036,11.78244,3415.9,3415.8,2.92749]
[1721253715422,11.79891045,3415.9,3415.8,2.92749]
[1721253715628,11.78244,3415.9,3415.8,2.92749]
[1721253716652,8.85496,3415.9,3415.8,2.92749]
[1721253718348,5.92748,3415.9,3415.8,2.92749]
[1721253720013,2.92715,3416.3,3415.8,2.92749]
[1721253720470,0.61031976,3416.9,3416.1,2.92726]
[1721253720622,0.61031976,3417.2,3415.8,5.85501]
[1721253720825,2.9268,3416.7,3416.1,2.92729]
[1721253721250,0.00170719,3416.6,3416.1,2.92729]
[1721253721433,2.9268,3416.7,3416.1,2.92729]
[1721253721755,2.92689,3416.6,3415.9,2.92744]
[1721253722253,2.92689,3416.6,3416.0,2.92738]
[1721253722429,2.92697,3416.5,3415.8,5.85501]
[1721253722831,2.92743,3416.0,3415.8,2.92749]
[1721253723031,5.85491,3416.0,3415.8,2.92749]
[1721253723223,2.92748,3415.9,3415.8,2.92749]
[1721253723421,5.85496,3415.9,3415.8,2.92749]
[1721253723820,5.86854064,3415.9,3415.8,2.92749]
[1721253724052,5.85496,3415.9,3415.8,2.92749]
[1721253725554,8.85496,3415.9,3415.8,2.92749]
[1721253726835,3.53765976,3416.1,3415.8,2.92749]
[1721253727037,2.92734,3416.1,3415.8,2.92749]
[1721253727541,3.61031976,3416.4,3415.8,2.92749]
[1721253727542,2.92725,3416.2,3415.8,2.92749]
[1721253727749,3.0,3416.4,3415.8,2.92749]
[1721253728364,5.9271,3416.4,3415.8,2.92749]
[1721253728568,2.92716,3416.3,3415.8,2.92749]
[1721253728777,2.92725,3416.2,3415.8,2.92749]
[1721253729182,2.92716,3416.3,3415.8,2.92749]
[1721253729183,2.92732,3416.1,3415.8,2.92749]
[1721253729558,2.92742,3416.0,3415.8,2.92749]
[1721253730366,2.94212722,3415.9,3415.8,2.92749]
[1721253730555,3.53779976,3415.9,3415.8,2.92749]
[1721253730764,2.92748,3415.9,3415.8,2.92749]
[1721253730970,3.84437045,3415.9,3415.8,2.92749]
[1721253731264,3.5398666,3415.9,3415.8,2.92749]
[1721253731643,0.6123866,3415.9,3415.8,2.92749]
[1721253731844,0.6123866,3416.0,3415.8,2.92749]
[1721253732057,0.6123866,3416.0,3415.8,7.92749]
[1721253732058,3.5397966,3416.0,3415.8,7.92749]
[1721253732239,0.6123866,3415.9,3415.8,7.92749]
[1721253732780,3.5397966,3416.0,3415.8,7.92749]
[1721253732949,0.6123866,3416.0,3415.8,7.92749]
[1721253733149,0.6123866,3416.0,3415.8,9.26012]
[1721253733342,0.6123866,3416.1,3415.8,9.26012]
[1721253733550,0.6123866,3416.3,3416.0,5.2807]
[1721253733847,0.6123866,3416.4,3416.2,2.92722]
[1721253734283,0.6123866,3416.5,3416.3,2.92713]
[1721253735177,0.6123866,3416.4,3416.3,2.92713]
[1721253735357,0.6123866,3416.5,3416.3,2.92713]
[1721253735684,0.6123866,3416.5,3416.4,2.92705]
[1721253735990,0.91689045,3416.6,3416.0,5.28063]
[1721253736147,0.61328467,3416.2,3416.0,2.3533]
[1721253736342,3.84395045,3416.4,3415.8,7.92749]
[1721253736343,0.91689045,3416.1,3415.8,7.92749]
[1721253736567,0.61335355,3415.9,3415.8,7.92749]
[1721253736814,0.61337709,3415.9,3415.8,7.92749]
[1721253736986,0.91689045,3416.0,3415.8,7.92749]
[1721253737187,0.91689045,3415.9,3415.8,7.92749]
[1721253737389,1.22257803,3416.1,3415.8,7.92749]
[1721253737390,0.91689045,3416.0,3415.8,7.92749]
[1721253737702,0.61344676,3415.9,3415.8,7.92749]
[1721253738974,0.61344676,3415.9,3415.8,11.78191423]
[1721253739171,0.61344676,3416.0,3415.8,11.78191423]
[1721253739820,0.61344676,3415.9,3415.8,11.78191423]
[1721253740000,0.61344676,3415.9,3415.8,7.92749]
[1721253740517,0.91689045,3415.9,3415.8,7.92749]
[1721253741476,1.52446987,3416.0,3415.8,7.92749]
[1721253742721,0.61340906,3415.9,3415.8,10.85506]
[1721253742879,0.61340906,3416.0,3415.9,2.92748]
[1721253744807,0.61340906,3416.0,3415.8,7.92749]
[1721253745014,0.61340906,3415.9,3415.8,7.92749]
[1721253745223,0.92014903,3416.0,3415.8,7.92749]
[1721253745791,0.92014903,3415.9,3415.8,7.92749]
[1721253746694,0.92014903,3416.0,3415.8,7.92749]
[1721253753765,0.92014903,3415.9,3415.8,7.92749]
[1721253756515,0.92014903,3415.9,3415.8,10.85506]
[1721253757412,0.92014903,3415.9,3415.8,7.92749]
[1721253758504,0.30606598,3415.9,3415.8,7.92749]
[1721253758812,1.22257803,3415.9,3415.8,7.92749]
[1721253760810,1.52864401,3415.9,3415.8,7.92749]
[1721253761464,1.01377685,3415.9,3415.8,7.92749]
[1721253761677,0.30606598,3415.9,3415.8,7.92749]
[1721253761926,1.53342152,3415.9,3415.8,7.92749]
[1721253762209,1.22735554,3415.9,3415.8,7.92749]
[1721253762710,1.53342152,3415.9,3415.8,7.92749]
[1721253763612,1.53342152,3415.9,3415.8,12.483233]
[1721253763900,1.22735554,3416.0,3415.9,2.92748]
[1721253764205,1.53391972,3416.2,3416.0,5.85474]
[1721253764410,0.70761132,3416.1,3416.0,2.92734]
[1721253764615,1.01389621,3416.1,3416.0,2.92734]
[1721253764781,0.30628489,3416.1,3416.0,2.92734]
[1721253765125,1.01390206,3416.1,3416.0,9.7049903]
[1721253765282,1.22824416,3416.1,3416.0,9.7049903]
[1721253765469,0.30628489,3416.1,3416.0,9.7049903]
[1721253765922,0.92113723,3416.2,3416.1,5.85462]
[1721253766127,0.61404989,3416.2,3416.1,5.85462]
[1721253766300,0.92113723,3416.3,3416.2,5.85444]
[1721253766513,0.92113723,3416.4,3416.3,5.85428]
[1721253767699,0.92113723,3416.5,3416.4,2.92705]
[1721253768986,0.92113723,3416.5,3416.1,5.00327203]
[1721253769218,0.61377306,3416.2,3416.0,2.2892]
[1721253769419,0.92113723,3416.3,3416.1,2.92731]
[1721253769721,0.92113723,3416.3,3416.2,2.92722]
[1721253770204,0.92113723,3416.3,3416.0,2.2892]
[1721253770439,0.61380679,3416.1,3416.0,2.2892]
[1721253770711,0.61380679,3416.1,3416.0,8.144]
[1721253770912,0.61380679,3416.1,3416.0,5.2166]
[1721253773302,0.92113723,3416.2,3416.0,5.2166]
[1721253773514,0.92113723,3416.1,3416.0,5.2166]
[1721253773901,0.92113723,3416.2,3416.1,2.92731]
[1721253774830,0.30623568,3416.2,3416.1,2.92731]
[1721253775966,1.22824416,3416.3,3416.1,2.92731]
[1721253776140,0.92107424,3416.2,3416.1,2.92731]
[1721253776329,1.22824416,3416.3,3416.1,2.92731]
[1721253776531,0.70759319,3416.2,3416.1,2.92731]
[1721253776827,1.01657345,3416.2,3416.1,2.92731]
[1721253777027,1.53713391,3416.2,3416.1,2.92731]
[1721253777256,1.22815365,3416.2,3416.1,2.92731]
[1721253777821,0.30898026,3416.2,3416.1,2.92731]
[1721253778276,1.22815365,3416.3,3416.2,2.92722]
[1721253778442,1.53722434,3416.3,3416.2,2.92722]
[1721253778642,0.30901085,3416.3,3416.2,2.92722]
[1721253779371,0.92112705,3416.3,3416.2,5.85444]
[1721253779681,0.92112705,3416.4,3416.3,2.92714]
[1721253779832,0.92112705,3416.5,3416.4,5.8541]
[1721253780238,0.92112705,3416.5,3416.2,6.27927343]
[1721253780239,0.61400995,3416.6,3416.5,5.85394]
[1721253781047,1.535137,3416.6,3416.5,5.85394]
[1721253781246,1.53493552,3417.0,3416.2,6.27927343]
[1721253781247,0.92112705,3416.7,3416.6,5.85376]
[1721253781949,0.92112705,3416.7,3416.6,2.92688]
[1721253782303,0.92112705,3416.7,3416.6,5.85376]
[1721253782660,0.92112705,3416.8,3416.7,5.8536]
[1721253783284,0.61378401,3416.8,3416.7,5.8536]
[1721253783482,0.92112705,3416.9,3416.8,5.85342]
[1721253783791,1.22821349,3417.1,3416.6,5.787856]
[1721253783792,0.92112705,3417.0,3416.9,5.85324]
[1721253783959,0.92112705,3417.0,3416.9,2.92662]
[1721253784147,0.31826265,3417.0,3416.5,2.92693]
[1721253784348,1.22821349,3416.7,3416.3,2.9271]
[1721253784548,1.5344602,3416.5,3415.9,3.32747]
[1721253784754,0.92049615,3416.0,3415.9,0.4]
[1721253784975,1.2273282,3416.0,3415.9,0.4]
[1721253785689,1.54587347,3416.0,3415.9,0.4]
[1721253786190,0.31854527,3416.0,3415.9,0.4]
[1721253786388,1.85282813,3416.1,3415.9,0.4]
[1721253786719,3.31621934,3416.0,3415.9,0.4]
[1721253786862,9.17101934,3416.0,3415.9,0.4]
[1721253787069,11.64953056,3416.0,3415.9,0.4]
[1721253787264,11.64955555,3416.0,3415.9,0.4]
[1721253787480,9.78695748,3416.0,3415.9,0.4]
[1721253787676,9.80671574,3416.0,3415.9,0.4]
[1721253787889,9.80671574,3416.0,3415.9,0.38800927]
[1721253788065,1.64215748,3416.0,3415.9,0.38800927]
[1721253788262,1.64215748,3416.0,3415.9,3.31548927]
[1721253788263,1.55137883,3416.0,3415.9,3.31548927]
[1721253788454,1.54575019,3416.0,3415.9,3.31548927]
[1721253788657,0.92035339,3416.1,3416.0,2.9274]
[1721253788885,0.92035339,3416.3,3416.1,2.92731]
[1721253789290,0.61351233,3416.2,3416.1,2.92731]
[1721253789594,0.61351233,3416.2,3416.0,2.9274]
[1721253789799,0.92035339,3416.1,3415.9,0.38800927]
[1721253790097,2.77444907,3416.0,3415.9,0.38800927]
[1721253790262,1.25840038,3416.0,3415.9,0.38800927]
[1721253790615,0.94034463,3416.0,3415.9,0.38800927]
[1721253790752,4.18580038,3416.0,3415.9,0.38800927]
[1721253790954,7.72856728,3416.0,3415.9,0.38800927]
[1721253791187,13.19756728,3416.0,3415.9,0.38800927]
[1721253791694,13.19770545,3416.0,3415.9,0.38800927]
[1721253791894,13.17983182,3416.0,3415.9,0.38800927]
[1721253792091,12.47197848,3416.0,3415.9,0.38800927]
[1721253792295,7.80137809,3416.0,3415.9,0.38800927]
[1721253792497,1.04385536,3416.0,3415.9,0.38800927]
[1721253792698,0.31805575,3416.0,3415.9,0.38800927]
[1721253792864,0.91997584,3416.0,3415.9,0.38800927]
[1721253795504,0.91997584,3416.1,3415.9,0.38800927]
[1721253795706,0.91997584,3416.0,3415.9,0.38800927]
[1721253795908,0.91997584,3416.1,3415.9,0.38800927]
[1721253796142,0.91997584,3416.0,3415.9,0.38800927]
[1721253796282,5.16833995,3416.0,3415.9,0.38800927]
[1721253796490,3.95899371,3416.0,3415.9,0.38800927]
[1721253796793,7.50154097,3416.0,3415.9,0.38800927]
[1721253797000,6.90300411,3416.0,3415.9,0.38800927]
[1721253797512,7.51812401,3416.0,3415.9,0.38800927]
[1721253797719,6.78782918,3416.0,3415.9,0.38800927]
[1721253798032,7.51688133,3416.0,3415.9,0.38800927]
[1721253798384,9.35696183,3416.0,3415.9,0.38800927]
[1721253798677,9.35723338,3416.0,3415.9,0.38800927]
[1721253799683,9.33572136,3416.0,3415.9,0.38800927]
[1721253799912,10.49564086,3416.0,3415.9,0.38800927]
[1721253800091,10.51561292,3416.0,3415.9,0.38800927]
[1721253800397,12.35511173,3416.0,3415.9,0.38800927]
[1721253800693,10.50790572,3416.0,3415.9,0.38800927]
[1721253800898,10.50792948,3416.0,3415.9,0.38800927]
[1721253801315,12.3473046,3416.0,3415.9,0.38800927]
[1721253801515,10.50476399,3416.0,3415.9,0.38800927]
[1721253801703,9.79692763,3416.0,3415.9,0.38800927]
[1721253801909,10.50475472,3416.0,3415.9,0.38800927]
[1721253802291,7.57735472,3416.0,3415.9,0.38800927]
[1721253802510,5.55809338,3416.0,3415.9,0.38800927]
[1721253802822,4.02573637,3416.0,3415.9,0.38800927]
[1721253803320,8.50156424,3416.0,3415.9,0.38800927]
[1721253803689,6.95313637,3416.0,3415.9,0.38800927]
[1721253803890,6.24530928,3416.0,3415.9,0.38800927]
[1721253804103,8.48534156,3416.0,3415.9,0.38800927]
[1721253804886,8.48527836,3416.0,3415.9,0.38800927]
[1721253806419,7.77751553,3416.0,3415.9,0.38800927]
[1721253807232,8.48520852,3416.0,3415.9,0.38800927]
[1721253807723,8.48520832,3416.0,3415.9,0.38800927]
[1721253807928,10.70483652,3416.0,3415.9,0.38800927]
[1721253808221,9.88047352,3416.0,3415.9,0.38800927]
[1721253808440,9.89987286,3416.0,3415.9,0.38800927]
[1721253808939,5.85496,3415.9,3415.8,7.92749]
[1721253809118,8.41265794,3415.9,3415.8,7.92749]
[1721253809926,8.43551073,3415.9,3415.8,7.92749]
[1721253810298,8.43543438,3415.9,3415.8,7.92749]
[1721253810703,6.19572207,3415.9,3415.8,7.92749]
[1721253810927,8.41247241,3415.9,3415.8,7.92749]
[1721253811109,8.41247178,3415.9,3415.8,7.92749]
[1721253811302,8.41247132,3415.9,3415.8,7.92749]
[1721253811702,8.43632195,3415.9,3415.8,7.92749]
[1721253811909,8.41247132,3415.9,3415.8,7.92749]
[1721253812109,8.43632195,3415.9,3415.8,7.92749]
[1721253813824,13.42274064,3415.9,3415.8,5.75502367]
[1721253815043,13.44244981,3415.9,3415.8,5.75502367]
[1721253815240,12.34475266,3415.9,3415.8,5.75502367]
[1721253815529,10.49526064,3415.9,3415.8,5.75502367]
[1721253815731,10.51104403,3415.9,3415.8,5.75502367]
[1721253816433,9.80319052,3415.9,3415.8,5.75502367]
[1721253816636,10.5111147,3415.9,3415.8,5.75502367]
[1721253817512,10.51717481,3415.9,3415.8,5.75502367]
[1721253817823,10.49533131,3415.9,3415.8,5.75502367]
[1721253818131,13.44790365,3415.9,3415.8,5.75502367]
[1721253818998,15.92730365,3415.9,3415.8,5.75502367]
[1721253819422,15.21937947,3415.9,3415.8,5.75502367]
[1721253819625,15.92729926,3415.9,3415.8,5.75502367]
[1721253820031,16.47732673,3415.9,3415.8,5.95502367]
[1721253820229,16.45223439,3415.9,3415.8,5.95502367]
[1721253820826,19.37971439,3415.9,3415.8,5.95502367]
[1721253821014,21.52528695,3415.9,3415.8,5.95502367]
[1721253821216,18.59634023,3415.9,3415.8,5.95502367]
[1721253821602,21.52382023,3415.9,3415.8,5.95502367]
[1721253822038,18.59634023,3415.9,3415.8,5.95502367]
[1721253822603,16.45230054,3415.9,3415.8,5.95502367]
[1721253823017,25.3561263,3415.9,3415.8,5.95502367]
[1721253823215,17.80542054,3415.9,3415.8,5.95502367]
[1721253823529,17.19088269,3415.9,3415.8,5.95502367]
[1721253823725,19.57901041,3415.9,3415.8,5.95502367]
[1721253823946,19.57212292,3415.9,3415.8,5.95502367]
[1721253824118,17.73755438,3415.9,3415.8,5.95502367]
[1721253824300,17.19373465,3415.9,3415.8,5.95502367]
[1721253824639,17.19373465,3415.9,3415.8,6.15502367]
[1721253825308,11.33877465,3415.9,3415.8,6.15502367]
[1721253825504,10.63076124,3415.9,3415.8,6.15502367]
[1721253825842,11.85287859,3415.9,3415.8,6.15502367]
[1721253826508,12.86696335,3415.9,3415.8,6.15502367]
[1721253826705,18.72192335,3415.9,3415.8,6.15502367]
[1721253826906,17.1906889,3415.9,3415.8,6.15502367]
[1721253827342,17.73869709,3415.9,3415.8,6.15502367]
[1721253827550,17.1906889,3415.9,3415.8,6.15502367]
[1721253828203,20.1181689,3415.9,3415.8,6.15502367]
[1721253828441,23.36316134,3415.9,3415.8,6.15502367]
[1721253828626,23.35991791,3415.9,3415.8,4.65588489]
[1721253828828,22.81206943,3415.9,3415.8,4.65588489]
[1721253829143,20.66635331,3415.9,3415.8,4.85588489]
[1721253829348,20.66632753,3415.9,3415.8,4.85588489]
[1721253829504,19.88450588,3415.9,3415.8,4.85588489]
[1721253829843,17.7388128,3415.9,3415.8,4.85588489]
[1721253831943,17.73876501,3415.9,3415.8,4.85588489]
[1721253832856,19.88653585,3415.9,3415.8,4.85588489]
[1721253833150,22.81401585,3415.9,3415.8,4.85588489]
[1721253833316,20.66624501,3415.9,3415.8,4.85588489]
[1721253833512,22.81423026,3415.9,3415.8,4.85588489]
[1721253834345,30.49733021,3415.9,3415.8,1.39629378]
[1721253834552,27.46208293,3415.9,3415.8,1.39629378]
[1721253834940,26.75420797,3415.9,3415.8,1.39629378]
[1721253835147,27.46236073,3415.9,3415.8,1.39629378]
[1721253835328,27.46236073,3415.9,3412.9,2.521]
[1721253835329,2.92873,3414.5,3413.7,5.41241]
[1721253835515,0.61387998,3414.0,3413.9,5.4123]
[1721253835850,0.61387998,3414.2,3414.1,8.34114]
[1721253836315,0.61387998,3414.4,3414.3,2.92885]
[1721253836511,7.31,3414.7,3414.6,2.9286]
[1721253836719,0.92081998,3414.9,3414.7,5.41161]
[1721253837020,0.9204548,3415.0,3414.9,5.41144]
[1721253837559,0.9204548,3415.0,3414.9,2.4831]
[1721253837724,3.03008203,3415.0,3414.9,2.4831]
[1721253838050,5.27228232,3415.0,3414.9,2.4831]
[1721253838453,5.27228232,3415.0,3414.1,2.92899]
[1721253838454,3.03008203,3415.0,3414.4,5.41186]
[1721253838767,2.92818,3415.1,3414.4,2.4831]
[1721253838768,0.61365156,3414.5,3414.4,2.4831]
[1721253839080,1.22730313,3414.5,3414.4,2.4831]
[1721253839216,5.27293982,3414.5,3414.4,2.4831]
[1721253840358,3.73869909,3414.5,3414.4,2.4831]
[1721253840532,0.81001909,3414.5,3414.4,2.4831]
[1721253840731,3.73869909,3414.5,3413.8,2.4831]
[1721253840929,0.92066022,3414.1,3414.0,5.41221]
[1721253841230,0.92066022,3414.1,3414.0,2.4831]
[1721253841416,1.5344337,3414.4,3414.0,5.41221]
[1721253841417,0.92066022,3414.2,3414.0,5.41221]
[1721253841616,0.019528,3414.1,3414.0,5.41221]
[1721253841952,0.04503937,3414.1,3414.0,5.41221]
[1721253842352,0.04503937,3414.1,3414.0,2.4831]
[1721253842656,0.96210058,3414.1,3414.0,9.2589046]
[1721253842966,0.64382467,3414.1,3414.0,9.2589046]
[1721253843148,0.64382467,3414.1,3414.0,6.3297946]
[1721253843349,0.0301662,3414.1,3414.0,6.3297946]
[1721253843865,0.64915718,3414.1,3414.0,6.3297946]
[1721253844157,0.64915718,3414.1,3414.0,9.2589046]
[1721253844158,0.0355646,3414.1,3414.0,9.2589046]
[1721253844358,0.02110908,3414.1,3414.0,9.2589046]
[1721253844862,0.92066022,3414.5,3414.3,2.92885]
[1721253845053,0.92066022,3414.4,3414.3,2.92885]
[1721253845354,0.92066022,3414.5,3414.3,2.92885]
[1721253845767,0.92066022,3414.5,3414.1,2.92896]
[1721253846086,0.61348856,3414.3,3414.0,6.3297546]
[1721253846230,0.61348856,3414.3,3414.1,0.63297546]
[1721253846959,0.61348856,3414.3,3414.0,2.4831]
[1721253847262,0.61349628,3414.1,3414.0,2.4831]
[1721253847455,0.61344001,3414.1,3414.0,2.4831]
[1721253848027,0.92066022,3414.2,3414.0,5.4122]
[1721253848228,0.61334421,3414.2,3414.0,5.4122]
[1721253848663,0.61334421,3414.4,3414.3,8.2651]
[1721253848828,7.92334421,3414.8,3414.7,5.85702]
[1721253849035,0.61334421,3415.0,3414.7,2.92851]
[1721253849348,0.61334421,3415.0,3414.7,2.92844]
[1721253849349,0.61334421,3414.8,3414.7,2.92844]
[1721253849863,0.92066022,3415.0,3414.8,2.92837]
[1721253849864,0.61326063,3414.9,3414.8,2.92837]
[1721253850162,0.61326063,3415.2,3415.1,5.85634]
[1721253850329,0.61326063,3415.2,3414.8,0.292837]
[1721253850525,8.23066022,3415.4,3414.9,5.30098]
[1721253850526,0.61326063,3415.1,3414.9,5.30098]
[1721253850726,0.61326063,3415.1,3414.9,2.3727]
[1721253850963,0.61326063,3415.0,3414.9,2.3727]
[1721253851339,0.70805049,3415.0,3414.4,2.3727]
[1721253851672,0.61343967,3414.6,3414.5,8.23006]
[1721253851984,0.61343967,3414.8,3414.5,3.195706]
[1721253852129,0.61343967,3414.7,3414.5,5.30138]
[1721253852330,0.61343967,3414.7,3414.5,2.3727]
[1721253852530,1.3287189,3414.7,3414.5,2.3727]
[1721253852868,0.10184424,3414.6,3414.5,2.3727]
[1721253853032,0.61346123,3414.6,3414.5,5.30138]
[1721253853357,0.61346903,3414.7,3414.6,8.1458]
[1721253853563,1.53370119,3415.2,3414.5,0.823029]
[1721253853564,0.61346903,3414.8,3414.7,8.14562]
[1721253853874,0.92025552,3415.1,3414.9,2.2886]
[1721253854235,0.92025552,3415.1,3415.0,2.92825]
[1721253854236,0.61346623,3415.1,3415.0,2.92825]
[1721253854438,1.22687935,3415.4,3415.1,5.85634]
[1721253854439,0.61346623,3415.2,3415.1,5.85634]
[1721253854741,0.61346623,3415.3,3415.2,2.92808]
[1721253855781,0.61346623,3415.3,3415.0,2.987185]
[1721253855782,0.92025552,3415.3,3415.0,2.4655]
[1721253855983,0.61346111,3415.2,3415.0,5.39375]
[1721253856275,0.61346111,3415.2,3414.6,2.4655]
[1721253856276,0.92025552,3415.2,3414.6,2.4655]
[1721253856437,0.61347384,3414.9,3414.6,5.39409]
[1721253856636,0.61347384,3414.8,3414.6,5.39409]
[1721253856860,0.62463515,3414.8,3414.6,5.39409]
[1721253857258,0.62463515,3414.8,3414.6,2.4655]
[1721253857581,0.62463515,3414.8,3413.7,2.521]
[1721253857582,1.22687935,3414.7,3414.2,2.4655]
[1721253857878,0.92047314,3414.4,3414.3,2.92885]
[1721253858050,0.6136267,3414.5,3414.4,2.92877]
[1721253858255,0.92047314,3414.7,3414.2,5.39437]
[1721253858435,0.92047314,3414.4,3414.3,2.92885]
[1721253858640,1.22687935,3414.5,3414.3,2.92885]
[1721253858641,0.92047314,3414.5,3414.3,2.92885]
[1721253858867,0.61369289,3414.5,3414.3,2.92885]
[1721253859173,0.92047314,3414.4,3414.2,2.4655]
[1721253859338,1.22687935,3414.5,3414.2,2.4655]
[1721253859339,0.61370669,3414.3,3414.2,2.4655]
[1721253860583,0.61370669,3414.4,3414.2,2.4655]
[1721253861605,0.61370669,3414.4,3414.0,0.2]
[1721253861606,3.03532525,3414.3,3414.0,0.2]
[1721253861892,0.92065681,3414.2,3414.0,5.46027]
[1721253862075,0.92065681,3414.2,3414.0,2.5312]
[1721253862076,0.61375878,3414.1,3414.0,2.5312]
[1721253862243,1.22754242,3414.1,3414.0,0.2]
[1721253862441,0.70828402,3414.1,3414.0,0.2]
[1721253862668,1.93579198,3414.1,3414.0,0.2]
[1721253862899,0.10655241,3414.1,3414.0,0.2]
[1721253863246,0.92050224,3414.1,3414.0,0.2]
[1721253863650,0.92050224,3414.3,3414.0,0.2]
[1721253863844,0.92050224,3414.2,3414.0,0.2]
[1721253864312,0.61360218,3414.1,3414.0,0.2]
[1721253864490,0.61360218,3414.1,3414.0,8.697376]
[1721253864656,0.61360218,3414.2,3414.1,2.92902]
[1721253864997,0.64747004,3414.2,3414.1,2.92902]
[1721253865140,0.65637445,3414.2,3414.1,2.92902]